Cogmind - Beta 16 @@@ ROGUE MODE // 2025.12.19 @ 01:14:49 Player: Red Box Result: Destroyed by ZD-2KM(R) with Subdweller Laser Performance ------------- Evolutions (0) 0 Regions Visited (3) 600 Robots Destroyed (41) 205 Value Destroyed (972) 972 Prototype IDs (12) 240 Alien Tech Used (0) 0 Bonus (-12) -12 TOTAL SCORE: 2005 Bonus ------- Friendly Fire -12 Cogmind --------- Core Integrity 0/250 Matter 286/300 Energy 183/200 System Corruption 0% Temperature Cool (6) Movement Treading (160) Location -10/Subcaves Parts ------- > --- POWER (1) -------- Subdweller Power Source > --- PROPULSION (2) --- Light Treads Light Treads > --- UTILITY (2) ------ Large Storage Unit Core Shielding > --- WEAPON (2) ------- Subdweller Beam Cannon Subdweller Machine Gun > --- INVENTORY (15) --- Meta Core Wheel Compact Wheel Improved Heat Sink High-capacity Battery (250) Large Matter Pod (150) Riot Gun Subdweller Laser Makeshift Laser Autogun Autogun Subdweller Machine Gun Bore Cannon Rocket Launcher Makeshift Spear Peak State ------------ > --- POWER ------------ Subdweller Power Source > --- PROPULSION ------- Light Treads Wheel > --- UTILITY ---------- Large Storage Unit Improved Terrain Scanner > --- WEAPON ----------- Autogun Makeshift Spear > --- INVENTORY -------- Light Treads Compact Wheel Improved Heat Sink High-capacity Battery Large Matter Pod Core Shielding Core Shielding Subdweller Laser Makeshift Laser Subdweller Beam Cannon Autogun Subdweller Machine Gun Subdweller Machine Gun Bore Cannon Rocket Launcher [Rating: 17] Favorites ----------- Power Ion Engine Engine Ion Engine Propulsion Light Treads Treads Light Treads Leg Aluminum Leg Wheel Wheel Utility Large Storage Unit Device Improved Terrain Scanner Storage Large Storage Unit Protection Core Shielding Weapon Autogun Energy Gun EM Pulse Gun Energy Cannon Subdweller Beam Cannon Ballistic Gun Autogun Launcher Grenade Launcher Special Weapon Mining Laser Piercing Weapon Makeshift Spear Build | -11 -10 -10 -10 ------- Run | Yrd Mat Min Sub Slots Evolved . | . . . . Power . | . . . . Propulsion . | . . . . Utility . | . . . . Weapon . | . . . . Parts Attached 35 | 8 15 2 10 Power 4 | 1 2 . 1 Engine 4 | 1 2 . 1 Core . | . . . . Reactor . | . . . . Propulsion 8 | 2 3 1 2 Treads 4 | . 1 1 2 Leg 3 | 2 1 . . Wheel 1 | . 1 . . Hover . | . . . . Flight . | . . . . Utility 8 | 3 3 1 1 Device 2 | 2 . . . Storage 2 | 1 1 . . Processor . | . . . . Hackware . | . . . . Protection 4 | . 2 1 1 Artifact . | . . . . Weapon 15 | 2 7 . 6 Energy Gun 2 | . 1 . 1 Energy Cannon 1 | . . . 1 Ballistic Gun 8 | 2 3 . 3 Ballistic Cannon . | . . . . Launcher 2 | . 2 . . Special Weapon 1 | . 1 . . Impact Weapon . | . . . . Slashing Weapon . | . . . . Piercing Weapon 1 | . . . 1 Special Melee Weapon . | . . . . Unidentified Prototypes . | . . . . Parts Lost 5 | . 2 . 3 Power 2 | . 1 . 1 Propulsion 1 | . . . 1 Utility . | . . . . Weapon 2 | . 1 . 1 Highest Loss Streak 2 | . 1 . 2 To Critical Strikes . | . . . . Average Backups 14 | 4 13 14 14 Power . | . . . . Propulsion 3 | 3 5 3 2 Utility 4 | . 3 4 4 Weapon 6 | 1 4 6 8 Tool/Special . | . . . . Unused Backups 16 | . 5 . 11 Power . | . . . . Propulsion 2 | . 1 . 1 Utility 4 | . 1 . 3 Weapon 9 | . 3 . 6 Tool/Special 1 | . . . 1 Average Slot Usage (%) 97 | . 99 100 94 Engine 11 | . 13 14 9 Treads 13 | . 5 14 16 Leg 4 | . 16 . . Wheel 9 | . 5 13 11 Device 1 | . 4 . . Storage 14 | . 14 14 14 Protection 12 | . 9 14 13 Energy Cannon 2 | . . . 4 Ballistic Gun 21 | . 25 28 16 Piercing Weapon 3 | . . . 6 Peak Build Rating 17 | 9 11 11 17 Average Rating 11 | 6 9 11 13 On Entrance 7 | . 9 11 11 Avg Prop Armor Cover (%) 11 | . 11 11 11 Naked Turns . | . . . . Heaviest Build 38 | 12 33 32 38 Greatest Support 40 | 20 20 40 40 Greatest Overweight (x) 3 | . 3 3 3 Average Overweight (x) 1 | . 1 2 1 Largest Inventory Capacity 15 | 8 15 15 15 Average Capacity 14 | 7 14 15 15 Most Carried 15 | 7 15 15 15 Average Carried 14 | 5 13 14 14 Final Capacity 15 | 8 15 15 15 Final Carried 15 | 7 15 15 15 Class Distribution -------------------- 100% | Mutant Dominant Class ---------------- Mutant | -10/Materials Mutant | -10/Mines Mutant | -10/Subcaves Resources | -11 -10 -10 -10 ----------- Run | Yrd Mat Min Sub Matter Collected 1760 | 328 468 102 862 Remotely . | . . . . Salvage Created 1241 | 150 523 97 471 Parts 82 | 15 40 2 25 Haulers Intercepted 2 | . 2 . . Recyclers Shooed 1 | 1 . . . Parts Field Recycled . | . . . . Retrieved Matter . | . . . . Parts Self-Destructed 21 | . . . 21 Prevented . | . . . . Parts Restored . | . . . . Kills | -11 -10 -10 -10 ------- Run | Yrd Mat Min Sub Combat Hostiles Destroyed 31 | . 14 2 15 Guns 19 | . 9 2 8 Cannons 5 | . . . 5 AOE 7 | . 5 . 2 Classes Destroyed 8 | 2 4 . 2 Tunneler 4 | 4 . . . Hauler 2 | . 2 . . Recycler 1 | 1 . . . Turret 1 | . . . 1 Watcher 2 | . 2 . . Swarmer 12 | . 6 . 6 Grunt 10 | . 8 2 . Subdweller 9 | . . . 9 Best Kill Streak 4 | 4 3 1 4 Combat Bots Only 3 | . 3 1 3 Max Kills in Single Turn 3 | 1 3 1 2 Gunslinging . | . . . . Exploded 3 | . 3 . 1 Melee . | . . . . Uniques/NPCs Destroyed . | . . . . Combat | -11 -10 -10 -10 -------- Run | Yrd Mat Min Sub Hostile Shots Fired 160 | . 53 11 96 Missed 49 | . 14 2 33 Hits 111 | . 39 9 63 Projectile 111 | . 39 9 63 Damage Taken 1452 | . 422 121 909 Core 262 | . 49 11 202 Absorbed by Shields . | . . . . Redirected to Shielding 46 | . 7 2 37 Regen/Repaired (Parts) 28 | . 28 . . Core Remaining (%) 100 | 100 . . . Volleys Fired 144 | 13 62 9 60 Largest 2 | 2 2 2 2 Hottest 113 | 40 100 46 113 Shots Fired 266 | 26 116 18 106 Gun 220 | 26 106 18 70 Cannon 19 | . . . 19 Launcher 14 | . 3 . 11 Special 13 | . 7 . 6 Kinetic 216 | 26 102 18 70 Thermal 32 | . 7 . 25 Explosive 14 | . 3 . 11 Electromagnetic 4 | . 4 . . Robot Hit Streak 27 | 3 9 13 27 Robot Miss Streak 7 | 2 7 2 3 Penetration Max . | . . . . Secondary Targets 1 | . 1 . . Max Gunslinging Chain 1 | . 1 . . Shots Hit Robots 155 | 13 59 14 69 Core Hits 77 | 6 34 5 32 Critical Kills . | . . . . Critical Parts Destroyed . | . . . . Critical Strikes . | . . . . Melee Attacks 83 | . . . 83 Impact . | . . . . Slashing . | . . . . Piercing 83 | . . . 83 Sneak Attacks . | . . . . Combat Hostiles . | . . . . Follow-up Attacks . | . . . . Damage Inflicted 2892 | 143 962 218 1569 Guns 1900 | 143 695 218 844 Cannons 392 | . . . 392 Explosions 600 | . 267 . 333 Melee . | . . . . Ramming . | . . . . Kinetic 1861 | 143 656 218 844 Thermal 471 | . 79 . 392 Explosive 521 | . 188 . 333 Electromagnetic 39 | . 39 . . Impact . | . . . . Slashing . | . . . . Piercing . | . . . . Highest Corruption . | . . . . Average Corruption . | . . . . Corruption Purged . | . . . . Corruption Blocked . | . . . . Overload Shots . | . . . . Overflow Damage 41 | . . . 41 Projectiles . | . . . . Explosions 41 | . . . 41 Melee . | . . . . Knockbacks . | . . . . Impact . | . . . . Kinetic . | . . . . Secondary . | . . . . Self-Inflicted Damage . | . . . . Shots . | . . . . Rammed . | . . . . Targets Rammed . | . . . . Kicked . | . . . . Crushed . | . . . . Highest Temperature 60 | . 60 35 18 Average Temperature 17 | . 18 15 8 Received Heat Transfer 594 | . 183 72 339 Siege Activations . | . . . . Martial Activations . | . . . . Shielding Activations . | . . . . Robots Disrupted . | . . . . Combat Hostiles . | . . . . Robots Corrupted . | . . . . Combat Hostiles . | . . . . Parts Fried . | . . . . Impact Corruptions . | . . . . Robots Melted . | . . . . Combat Hostiles . | . . . . Parts Melted 1 | . . . 1 Heat Transferred 618 | . 100 . 518 Parts Sabotaged . | . . . . Parts Stolen . | . . . . Parts Stripped . | . . . . Power Chain Reactions 1 | . 1 . . Alert | -11 -10 -10 -10 ------- Run | Yrd Mat Min Sub Maximum Alert Level . | . . . . Low Security (%) 100 | 100 100 100 . Level 1 . | . . . . Level 2 . | . . . . Level 3 . | . . . . Level 4 . | . . . . Level 5 . | . . . . High Security . | . . . . Max Security . | . . . . Peak Influence 148 | 10 148 50 . Initial 50 | . . 50 . Average 23 | 1 34 6 . Influence Increases 931 | 25 496 65 345 Destroy 0b10 Robot/C 460 | . 280 40 140 Destroy 0b10 Robot/NC 45 | 25 20 . . Destroy Leader 88 | . 68 10 10 Successful Hack 37 | . 37 . . Select Force Hacks 60 | . 60 . . Destroy Structure 31 | . 31 . . Lose Combat Pursuer 210 | . . 15 195 Influence Decreases 931 | 25 366 195 345 Entered New Map 80 | . . 80 . Time Decay 801 | 25 346 115 315 Lost Part 50 | . 20 . 30 Squads Dispatched 2 | . 2 . . Investigation 2 | . 2 . . Extermination . | . . . . Reinforcement . | . . . . Assault . | . . . . Garrison . | . . . . Intercept . | . . . . Searches Triggered . | . . . . Construction Impeded . | . . . . Haulers Reinforced . | . . . . Active Scanning Responses . | . . . . Cargo Convoy Interrupts . | . . . . Stealth | -11 -10 -10 -10 --------- Run | Yrd Mat Min Sub Distress Signals 1 | . 1 . . Communications Jammed . | . . . . Distress Signals . | . . . . Times Spotted 56 | . 28 3 25 Peak Tracking Total 4 | . 4 2 3 Tactical Retreats 6 | . . 1 5 Traps | -11 -10 -10 -10 ------- Run | Yrd Mat Min Sub Traps Triggered . | . . . . Indirectly . | . . . . Trap Hack Attempts . | . . . . Triggered . | . . . . Disarmed . | . . . . Reprogrammed . | . . . . Reused . | . . . . Traps Extracted . | . . . . Installed . | . . . . Triggered . | . . . . Machines | -11 -10 -10 -10 ---------- Run | Yrd Mat Min Sub Machines Disabled 4 | . . . 4 Max in Single Turn 1 | . . . 1 Machines Repaired . | . . . . Machines Dismantled . | . . . . Machines Sabotaged . | . . . . Overloaded Fab Kills . | . . . . Hacking | -11 -10 -10 -10 --------- Run | Yrd Mat Min Sub Machines Accessed 13 | . 10 . 3 Terminals 7 | . 7 . . Fabricators . | . . . . Repair Stations 1 | . 1 . . Recycling Units 2 | . 2 . . Scanalyzers . | . . . . Garrison Access . | . . . . Total Hacks 46 | . 40 . 6 Successful 33 | . 27 . 6 Failed 12 | . 12 . . Catastrophic 1 | . 1 . . Database Lockouts 1 | . 1 . . Manual 29 | . 29 . . Terminals 31 | . 31 . . Fabricators . | . . . . Repair Stations 2 | . 2 . . Recycling Units 7 | . 7 . . Scanalyzers . | . . . . Garrison Access . | . . . . Terminal Hacks 11 | . 5 . 6 Record 4 | . . . 4 Robot Analysis 1 | . 1 . . Open Door 1 | . . . 1 Terminal Index 1 | . 1 . . Locate Traps 1 | . 1 . . Hauler Manifests 1 | . 1 . . Registered Components 1 | . 1 . . Proto ID Catalog 1 | . . . 1 Fabricator Hacks . | . . . . Repair Station Hacks 2 | . 2 . . Scan Component 1 | . 1 . . Repair 1 | . 1 . . Recycling Unit Hacks 2 | . 2 . . Retrieve Components 2 | . 2 . . Scanalyzer . | . . . . Garrison Access Hacks . | . . . . Unauthorized Hacks 18 | . 18 . . Terminals 15 | . 15 . . Track 2 | . 2 . . Assimilate 2 | . 2 . . Botnet 4 | . 4 . . Operators 1 | . 1 . . Skim 6 | . 6 . . Fabricators . | . . . . Repair Stations . | . . . . Recycling Units 3 | . 3 . . Reject 1 | . 1 . . Tunnel 2 | . 2 . . Scanalyzers . | . . . . Garrison Access . | . . . . Data Cores Recovered . | . . . . Used . | . . . . Hacking Detections 8 | . 8 . . Full Trace Events . | . . . . Feedback Events . | . . . . Feedback Blocked . | . . . . Robot Schematics Acquired . | . . . . Robots Built . | . . . . Authchips . | . . . . Time . | . . . . Total Robot Build Rating . | . . . . Part Schematics Acquired . | . . . . Parts Built . | . . . . Authchips . | . . . . Time . | . . . . Total Part Build Rating . | . . . . Part Studies Acquired . | . . . . Parts Repaired 1 | . 1 . . Time 26 | . 26 . . Parts Recycled . | . . . . Recycled Matter . | . . . . Retrieved Matter . | . . . . Retrieved Components 8 | . 8 . . Parts Scanalyzed . | . . . . Part Schematics Acquired . | . . . . Parts Damaged . | . . . . Bothacking | -11 -10 -10 -10 ------------ Run | Yrd Mat Min Sub Used RIF Installer . | . . . . Robots Hacked . | . . . . Non-combat . | . . . . Combat . | . . . . Robot Hacks Applied . | . . . . Relay Couplers Released . | . . . . Fabnet Peak Effective % . | . . . . Robots Rewired . | . . . . Allies Hacked . | . . . . Hacks Repelled . | . . . . Allies | -11 -10 -10 -10 -------- Run | Yrd Mat Min Sub Total Allies 1 | . 1 . . Largest Group 1 | . 1 1 1 Highest-Rated Group 10 | . 10 10 10 Highest-Rated Ally 10 | . 10 10 10 Total Orders 6 | . 1 4 1 STAY 4 | . 1 2 1 FOLLOW 2 | . . 2 . Ally Attacks . | . . . . Total Damage . | . . . . Kills . | . . . . Allies Corrupted . | . . . . Allies Melted . | . . . . Intel | -11 -10 -10 -10 ------- Run | Yrd Mat Min Sub Active Infowar (turns) 797 | 58 559 . 180 Terrain 797 | 58 559 . 180 Robot Analysis Total 1 | . 1 . . Derelict Logs Recovered 3 | . . 1 2 Drone Launches . | . . . . Drone Recoveries . | . . . . Exploration | -11 -10 -10 -10 ------------- Run | Yrd Mat Min Sub Turns Passed 6852 | 126 1967 1170 3589 Spaces Moved 3633 | 63 1044 648 1878 Core 7 | 7 . . . Treads 850 | . 5 24 821 Legs 543 | 56 487 . . Wheels 2233 | . 552 624 1057 Hover . | . . . . Flight . | . . . . Fastest Speed 50 | 50 110 125 110 Average Speed 149 | 112 151 126 158 Slowest Speed 240 | 120 240 160 240 Overloaded Moves . | . . . . Propulsion Burnouts . | . . . . Robots Hopped . | . . . . Potential Cave-ins . | . . . . Cave-ins Triggered . | . . . . Exploration Rate (%) 71 | 5 92 102 87 Regions Visited 3 Branch Regions 2 Pre-discovered Areas 4 | . 2 . 2 Known Exits Taken 1 | . . 1 . Unknown Exits Taken 2 | 1 1 . . Scrap Searched 10 | . . 3 7 Spaces Dug 17 | . 7 . 10 Terrain Destroyed 98 | . 29 . 69 Melee 10 | . . . 10 Projectile 7 | . 7 . . AOE 81 | . 22 . 59 Terrain Rammed . | . . . . Walls Destroyed . | . . . . Machines Disabled . | . . . . Actions | -11 -10 -10 -10 --------- Run | Yrd Mat Min Sub Total 4675 | 91 1308 984 2292 Wait 681 | . 142 321 218 Move 3630 | 62 1043 647 1878 Hop . | . . . . Pick Up 40 | 7 22 2 9 Fast Attach 12 | 7 3 . 2 Attach 8 | . 4 . 4 Detach 1 | . 1 . . Swap 49 | 1 15 3 30 Drop 27 | 1 16 2 8 Fire 144 | 13 62 9 60 Melee 83 | . . . 83 Ram . | . . . . Kick . | . . . . Crush . | . . . . Escape Stasis . | . . . . Rewire . | . . . . Trap . | . . . . Miscellaneous . | . . . . Route ------- -11/Scrapyard -10/Materials (discovered 6 exits: *Mat x3 / [*Min x2] / Sub) -10/Mines (discovered 3 exits: *Mat x2 / *Sub) -10/Subcaves (discovered 2 exits: [*Rec] / [*Scr]) History --------- Turn | Location | Event 6 | -11/Scrapyard | Discovered new exit (range 15) 127 | -11/Scrapyard | Entered Materials 300 | -10/Materials | Build established: Mutant 362 | -10/Materials | Central database locked down 418 | -10/Materials | Discovered new exit (range 7) 603 | -10/Materials | Discovered new exit (range 16) 854 | -10/Materials | Discovered new exit (range 6) 938 | -10/Materials | Learned Storage stockpile data 982 | -10/Materials | Learned Recycling recycling unit intel 1015 | -10/Materials | Identified exit to Materials 1015 | -10/Materials | Identified exit to Subcaves 1036 | -10/Materials | Loaded intel: 16 trap records 1047 | -10/Materials | Learned location of 1 exit from Recycling 1070 | -10/Materials | Learned 4 Recycling zone layouts 1101 | -10/Materials | Learned location of 1 exit from Storage 1469 | -10/Materials | Repaired Grenade Launcher 1605 | -10/Materials | Discovered new exit (range 11) 2094 | -10/Materials | Entered Mines 2094 | -10/Mines | Accompanied by 1 ally 2413 | -10/Mines | Discovered exit to Materials (range 11) 2634 | -10/Mines | Learned location of 1 exit from Materials 2722 | -10/Mines | A weapon hastily lodged in a ceiling crevice suddenly fell to the ground 2972 | -10/Mines | Discovered exit to Materials (range 6) 3257 | -10/Mines | Discovered exit to Subcaves (range 6) 3264 | -10/Mines | Entered Subcaves 3264 | -10/Subcaves | Accompanied by 1 ally 3265 | -10/Subcaves | Approached by a straggling Scientist 3267 | -10/Subcaves | Shifting Twisted Machinery released Sub. Beam Cannon 3267 | -10/Subcaves | Shifting Twisted Machinery released Scrap Shield 3334 | -10/Subcaves | Core integrity fell below 50% 3623 | -10/Subcaves | Shifting Twisted Machinery released Shrapnel Trap 3747 | -10/Subcaves | Discovered new exit (range 14) 3752 | -10/Subcaves | Core integrity fell below 20% 3801 | -10/Subcaves | Scientist uncovered a shortcut to Scraptown 3985 | -10/Subcaves | A swath of the cavern ceiling suddenly collapsed 4270 | -10/Subcaves | Shifting Twisted Machinery released Sub. Laser 4433 | -10/Subcaves | Shifting Twisted Machinery released Mak. Laser 4497 | -10/Subcaves | Learned location of Zion (-6) 4497 | -10/Subcaves | Met a Zionite searching for "candidates" 5015 | -10/Subcaves | Visited Clippyterm 5019 | -10/Subcaves | Learned Factory trap positions 5253 | -10/Subcaves | Visited 4L-MR0's lab 5266 | -10/Subcaves | Found Meta Core 5705 | -10/Subcaves | Learned Materials trap positions 5724 | -10/Subcaves | A swath of the cavern ceiling suddenly collapsed 6853 | -10/Subcaves | Destroyed by ZD-2KM(R) with Subdweller Laser Last Messages --------------- 05839_ Acquired 34 matter. 05841_ Acquired 6 matter. 05931_ M8-XUV(u) builds Twisted Machinery. 06019_ Subatomizers dissect the Sub. Monowheel. 06154_ Dropped Sub. Beam Cannon. 06156_ Acquired Sub. Beam Cannon. 06353_ Acquired derelict log, extracted data. World map confirmed: -6/Zion. 06438_ Y6-TCJ(R) destroyed. 06438_ EB-H95(R) destroyed. 06454_ Acquired 46 matter. 06457_ The unstable cave ceiling collapses. 06457_ Disposable Heat Sink crushed. 06459_ Acquired 35 matter. 06548_ Sub. Machine Gun shoots sparks and powers down. 06555_ TG-00A(R) destroyed. 06558_ Acquired 26 matter. 06740_ Subatomizers dissect the Sub. Power Source. 06756_ Acquired 20 matter. Map ----- +----------------------------------------------------+ | ?### ##????#= " ""##??????#####????????## "#""#" | | ??# ####### """""#####?## #####???## """ " | | ### """#" """""## ### ##??# ## ## " | | # "" [ #### ##### | | # " " " """""" #### | | # #"## "" "" ### # ### #?## | | #####""" "" ###### ### ##??? | | ## ### " "" #???## ##?# # #???? | | """####" """" #????###??# ## ##???? | | "" #### ### " #????????############????? | | "" #?###?# " #????????????????????????? | | ] ##?????### ##????????????????????????? | | ####??#??? #?????????????????????????? | | #" #### ##?????????????????????????? | | ## ??????????????????????????? | | ## #??????????????????????????? | | ##### ##?##???????????????????????????? | | # ## ###!##??####???????????????????????????? | | ### ######[|#### ##??????????????????????????? | | ## #### ## #??????????????????????????? | | # ##??????????????????????????? | | # # ##???????????????????????????? | | # #????????????????????????????? | | # ####### ##????????????????????????#### | | #### #### # ##?###????#####?########?# # | | ###""# ###@###### # ### ## ### | | #[ "=# R ## | | #""|"# ###### # ### " | | #"= ## ##????#### #?## # # # # ""### # | | ### # #????????###??# ############ ## "##?# # | | #?????????????####??????????######]""#?#" # | | ### ##???????????????????????????????## "#?#" # | | ??## #????????????????????????????????# ###" # | | ??# ##???????????????????????????????# #"#" # | | ??# #???????????????????????????????# "" | | ??# #???????????????????????????????#"! " " | | ?## #??????????????????????????????##" &"# | | ## #??????????????????????????????#"" ## # | | #??????????????????????????????# ## | | #??????????????????????????????###### | | ## #???????????????????????????????????# | | ## ##???????????????????????????????##### # | | # ##???????????????????????????????# " # | | #???????????????????????????????#"""" | | #????????????????????###????????## | | ##??????????????????## #######???# ## | | #??????????????????# ##??## ## | | ##?????????????????# ###?# | | ### #?????????????????## ### | | #?? #?????????????????#" %& | +----------------------------------------------------+ Best States ------------- Heat Dissipation 25 Energy Generation 10 Energy Capacity 250 Matter Stores 300 Matter Capacity 300 Sight Range 16 Terrain Scan Range 16 Terrain Scan Density 10 Core Shielding 20 Evasion (%) 55 Recoil Reduction 2 Item Schematics ----------------- None Robot Schematics ------------------ None Fabricated ------------ Nothing Repaired ---------- Grenade Launcher | 53% | -10/Materials Studied --------- None Alien Tech Used ----------------- None Achievements -------------- None Challenges ------------ None Game ------ Seed TransportLinearAutocannon Manual? 0 Play Time 00:39:48 Cumulative 870.3 hours Start 2025.12.19 @ 00:38:13 End 2025.12.19 @ 01:14:49 Sessions 1 Manual Loads 0 Difficulty Rogue Special Mode None Game No. 557 Rogue 557 Adventurer 0 Explorer 0 Win Type - Total 1 Types 1/0/0/0/0/0/0/0/0/0 Lore% 80 Gallery% 72 Achievement% 53 Wizard Run 0 Options --------- Layout 1 ASCII 0 Keyboard 0 Movement Mouse Keybinds 0 Fullscreen 1 Font 20/SmallcapsGlow Map View 54x42 Zoom Use 0% Tactical HUD 1 Map Filters NONE Filters NONE Steam 1 RUN: 7f7af0de-b8dd-4e7e-8875-a98a1f99c75f